[Event "12th National Amateur Chess-ch 2025"]
[Site "Bihar"]
[Date "2025.03.28"]
[Round "7.6"]
[White "Aman Balana"]
[Black "Shejal Sahil Sanjay"]
[Result "1-0"]
[Annotator "NA RC"]
[ECO "B03"]
[WhiteElo "1827"]
[BlackElo "1864"]
[PlyCount "95"]
[EventDate "2025.03.25"]
[EventCountry "IND"]
[SourceTitle "playchess.com"]
[Source "ChessBase"]
[SourceQuality "1"]
[TimeControl "5400+30"]

1. e4 {[%emt 0:05:37]} Nf6 {[%emt 0:06:04]} 2. e5 {[%emt 0:00:00]} Nd5 {[%emt 0:00:01]} 3. d4 {[%emt 0:00:00]} d6 {[%emt 0:00:01]} 4. c4 {[%emt 0:00:00]} Nb6 {[%emt 0:00:03]} 5. exd6 {[%emt 0:00:00]} exd6 {[%emt 0:00:04]} 6. Nc3 {[%emt 0:00:00]} Be7 {[%emt 0:00:09]} 7. Bd3 {[%emt 0:00:00]} Bf6 {[%emt 0:00:32]} 8. Nge2 {[%emt 0:00:00]} Nc6 {[%emt 0:00:30]} 9. Be3 {[%emt 0:00:00]} d5 {[%emt 0:00:26]} 10. c5 {[%emt 0:03:10]} Nc4 {[%emt 0:01:10]} 11. Qc2 {[%emt 0:02:57]} Nxe3 {[%emt 0:08:39]} 12. fxe3 {[%emt 0:00:02]} g6 {[%emt 0:00:35]} 13. O-O {[%emt 0:01:42]} Bg7 {[%emt 0:00:58]} 14. Nf4 {[%emt 0:10:46]} Ne7 {[%emt 0:01:49]} 15. b4 {[%emt 0:02:56]} O-O {[%emt 0:03:27]} 16. b5 {[%emt 0:02:52]} c6 {[%emt 0:03:50]} 17. Rab1 {[%emt 0:01:51]} Nf5 {[%emt 0:04:30]} 18. Qf2 {[%emt 0:08:25]} Bd7 {[%emt 0:02:54]} 19. bxc6 {[%emt 0:03:30]} bxc6 {[%emt 0:00:30]} 20. Rb7 {[%emt 0:02:50]} Qe7 {[%emt 0:06:57]} 21. Bxf5 {[%emt 0:04:08]} gxf5 {[%emt 0:00:08]} 22. Nh5 {[%emt 0:05:38]} f6 {[%emt 0:05:57]} 23. Qg3 {[%emt 0:03:48]} Rf7 {[%emt 0:00:59]} 24. Nxd5 {[%emt 0:08:14]} cxd5 {[%emt 0:01:47]} 25. c6 {[%emt 0:00:16]} Rd8 {[%emt 0:00:54]} 26. Rxa7 {[%emt 0:09:23]} Kh8 {[%emt 0:02:00]} 27. cxd7 {[%emt 0:01:11]} Bh6 {[%emt 0:03:42]} 28. Rf3 {[%emt 0:03:46]} Rxd7 {[%emt 0:02:34]} 29. Ra8+ {[%emt 0:01:04]} Rd8 {[%emt 0:03:06]} 30. Rxd8+ {[%emt 0:00:41]} Qxd8 {[%emt 0:00:01]} 31. Rxf5 {[%emt 0:00:55]} Qc8 {[%emt 0:01:46]} 32. Rf1 {[%emt 0:03:54]} Qc3 {[%emt 0:02:21]} 33. Nf4 {[%emt 0:00:27]} Rg7 {[%emt 0:02:35]} 34. Qf3 {[%emt 0:02:10]} Qc2 {[%emt 0:01:52]} 35. Qxd5 {[%emt 0:03:13]} Bxf4 {[%emt 0:01:07]} 36. exf4 {[%emt 0:00:20]} Ra7 {[%emt 0:00:12]} 37. Qc5 {[%emt 0:04:06]} Qxc5 {[%emt 0:01:22]} 38. dxc5 {[%emt 0:00:02]} Rxa2 {[%emt 0:00:05]} 39. Rc1 {[%emt 0:00:10]} Ra7 {[%emt 0:00:04]} 40. c6 {[%emt 0:00:07]} Rc7 {[%emt 0:00:03]} 41. Kf2 {[%emt 0:00:49]} Kg8 {[%emt 0:00:05]} 42. Ke3 {[%emt 0:00:16]} Kf7 {[%emt 0:00:35]} 43. Kd4 {[%emt 0:00:17]} Ke7 {[%emt 0:00:13]} 44. Kc5 {[%emt 0:00:18]} Kd8 {[%emt 0:00:08]} 45. Kb6 {[%emt 0:02:37]} Re7 {[%emt 0:01:00]} 46. Rd1+ {[%emt 0:01:01]} Kc8 {[%emt 0:00:02]} 47. Ra1 {[%emt 0:00:20]} Kb8 {[%emt 0:00:04]} 48. c7+ {[%emt 0:00:18]} 1-0

[Event "12th National Amateur Chess-ch 2025"]
[Site "Bihar"]
[Date "2025.03.28"]
[Round "7.7"]
[White "Gurung Rohit"]
[Black "Ebenezer, Joseph"]
[Result "1-0"]
[Annotator "RC"]
[ECO "C00"]
[WhiteElo "1902"]
[BlackElo "1961"]
[PlyCount "121"]
[EventDate "2025.03.25"]
[EventCountry "IND"]
[SourceTitle "playchess.com"]
[Source "ChessBase"]
[SourceQuality "1"]
[TimeControl "5400+30"]

1. e4 {[%emt 0:00:01]} e6 {[%emt 0:05:17]} 2. Qe2 {[%emt 0:00:19]} e5 {[%emt 0:00:48]} 3. Nf3 {[%emt 0:01:22]} Nc6 {[%emt 0:00:07]} 4. c3 {[%emt 0:00:45]} g6 {[%emt 0:02:56]} 5. d4 {[%emt 0:01:36]} Bg7 {[%emt 0:00:07]} 6. dxe5 {[%emt 0:10:13]} Nxe5 {[%emt 0:00:16]} 7. Nxe5 {[%emt 0:00:29]} Bxe5 {[%emt 0:00:02]} 8. Be3 {[%emt 0:00:48]} d6 {[%emt 0:08:24]} 9. Nd2 {[%emt 0:12:16]} Qe7 {[%emt 0:01:30]} 10. O-O-O {[%emt 0:04:32]} Bg7 {[%emt 0:00:33]} 11. g4 {[%emt 0:03:07]} Qe6 {[%emt 0:09:04]} 12. Kb1 {[%emt 0:03:30]} Qxg4 {[%emt 0:00:49]} 13. f3 {[%emt 0:00:07]} Qh5 {[%emt 0:01:07]} 14. Rg1 {[%emt 0:08:00]} h6 {[%emt 0:02:44]} 15. Nb3 {[%emt 0:10:25]} Ne7 {[%emt 0:00:44]} 16. Bd4 {[%emt 0:02:25]} O-O {[%emt 0:01:19]} 17. Bxg7 {[%emt 0:03:57]} Kxg7 {[%emt 0:00:09]} 18. Nd4 {[%emt 0:00:26]} a6 {[%emt 0:06:03]} 19. Qe3 {[%emt 0:09:06]} f5 {[%emt 0:14:40]} 20. Bc4 {[%emt 0:02:28]} f4 {[%emt 0:00:59]} 21. Qf2 {[%emt 0:01:03]} Qe5 {[%emt 0:01:43]} 22. h4 {[%emt 0:02:02]} b5 {[%emt 0:00:27]} 23. Bb3 {[%emt 0:01:23]} c5 {[%emt 0:00:20]} 24. Ne2 {[%emt 0:00:17]} a5 {[%emt 0:03:43]} 25. Bd5 {[%emt 0:01:21]} Rb8 {[%emt 0:00:38]} 26. Nc1 {[%emt 0:00:46]} Bb7 {[%emt 0:04:10]} 27. Bxb7 {[%emt 0:01:33]} Rxb7 {[%emt 0:00:02]} 28. Nd3 {[%emt 0:02:43]} Qf6 {[%emt 0:00:12]} 29. e5 {[%emt 0:00:27]} Qf5 {[%emt 0:10:58]} 30. exd6 {[%emt 0:02:45]} c4 {[%emt 0:00:18]} 31. Qd4+ {[%emt 0:01:09]} Kh7 {[%emt 0:00:55]} 32. dxe7 {[%emt 0:03:44]} Rxe7 {[%emt 0:00:36]} 33. Qc5 {[%emt 0:00:17]} Re3 {[%emt 0:08:31]} 34. Qxf5 {[%emt 0:01:15]} Rxf5 {[%emt 0:00:01]} 35. Ne1 {[%emt 0:00:57]} g5 {[%emt 0:01:26]} 36. hxg5 {[%emt 0:00:35]} hxg5 {[%emt 0:00:02]} 37. Nc2 {[%emt 0:00:38]} Re7 {[%emt 0:02:58]} 38. Nd4 {[%emt 0:00:07]} Rc5 {[%emt 0:00:57]} 39. Rde1 {[%emt 0:00:15]} Rxe1+ {[%emt 0:01:10]} 40. Rxe1 {[%emt 0:00:01]} Kg6 {[%emt 0:00:14]} 41. Kc2 {[%emt 0:00:14]} b4 {[%emt 0:00:41]} 42. Kd2 {[%emt 0:02:01]} Kh5 {[%emt 0:02:10]} 43. Rh1+ {[%emt 0:02:34]} Kg6 {[%emt 0:00:02]} 44. Rh2 {[%emt 0:00:44]} Re5 {[%emt 0:01:16]} 45. Re2 {[%emt 0:00:32]} Rc5 {[%emt 0:00:02]} 46. Re6+ {[%emt 0:00:14]} Kh5 {[%emt 0:00:04]} 47. Rc6 {[%emt 0:00:13]} bxc3+ {[%emt 0:00:24]} 48. Kxc3 {[%emt 0:00:38]} Re5 {[%emt 0:00:46]} 49. Kxc4 {[%emt 0:00:33]} g4 {[%emt 0:00:24]} 50. fxg4+ {[%emt 0:00:20]} Kxg4 {[%emt 0:00:01]} 51. Rc5 {[%emt 0:00:36]} Re4 {[%emt 0:00:38]} 52. Kd5 {[%emt 0:02:59]} Re1 {[%emt 0:01:25]} 53. Rxa5 {[%emt 0:00:58]} Rd1 {[%emt 0:00:57]} 54. Kc4 {[%emt 0:00:36]} f3 {[%emt 0:00:31]} 55. Nxf3 {[%emt 0:00:20]} Kxf3 {[%emt 0:00:02]} 56. Re5 {[%emt 0:00:29]} Rc1+ {[%emt 0:01:21]} 57. Kb3 {[%emt 0:00:07]} Kf4 {[%emt 0:00:45]} 58. Re8 {[%emt 0:00:06]} Rc7 {[%emt 0:00:20]} 59. a4 {[%emt 0:00:04]} Rb7+ {[%emt 0:00:03]} 60. Ka3 {[%emt 0:00:04]} Rh7 {[%emt 0:00:08]} 61. a5 {[%emt 0:00:07]} 1-0

[Event "12th National Amateur Chess-ch 2025"]
[Site "Bihar"]
[Date "2025.03.28"]
[Round "7.8"]
[White "Piyush Kumar"]
[Black "Rupesh B Ramchandra"]
[Result "1/2-1/2"]
[Annotator "NA RC"]
[ECO "B42"]
[WhiteElo "1836"]
[BlackElo "1859"]
[PlyCount "42"]
[EventDate "2025.03.25"]
[EventCountry "IND"]
[SourceTitle "playchess.com"]
[Source "ChessBase"]
[SourceQuality "1"]
[TimeControl "5400+30"]

1. e4 {[%emt 0:00:02]} c5 {[%emt 0:01:47]} 2. Nf3 {[%emt 0:00:07]} e6 {[%emt 0:00:21]} 3. d4 {[%emt 0:00:05]} cxd4 {[%emt 0:00:07]} 4. Nxd4 {[%emt 0:00:05]} a6 {[%emt 0:00:05]} 5. Bd3 {[%emt 0:00:22]} Qc7 {[%emt 0:00:43]} 6. Qe2 {[%emt 0:00:09]} b5 {[%emt 0:02:19]} 7. O-O {[%emt 0:02:48]} Bb7 {[%emt 0:01:12]} 8. Kh1 {[%emt 0:01:51]} Nc6 {[%emt 0:02:26]} 9. Be3 {[%emt 0:01:09]} Nf6 {[%emt 0:01:39]} 10. f4 {[%emt 0:08:59]} Be7 {[%emt 0:02:53]} 11. a3 {[%emt 0:03:18]} d6 {[%emt 0:02:12]} 12. Nxc6 {[%emt 0:10:10]} Bxc6 {[%emt 0:00:43]} 13. Nc3 {[%emt 0:00:15]} h5 {[%emt 0:01:52]} 14. Bd4 {[%emt 0:00:47]} Qb7 {[%emt 0:01:09]} 15. Rae1 {[%emt 0:00:56]} Rd8 {[%emt 0:01:15]} 16. Bg1 {[%emt 0:00:13]} Ng4 {[%emt 0:00:11]} 17. Bd4 {[%emt 0:00:23]} Nf6 {[%emt 0:00:10]} 18. Bg1 {[%emt 0:00:00]} Ng4 {[%emt 0:00:05]} 19. Bd4 {[%emt 0:00:01]} Nf6 {[%emt 0:00:06]} 20. Bg1 {[%emt 0:00:05]} Ng4 {[%emt 0:00:03]} 21. Bd4 {[%emt 0:00:16]} Nf6 {[%emt 0:00:04]} 1/2-1/2

[Event "12th National Amateur Chess-ch 2025"]
[Site "Bihar"]
[Date "2025.03.28"]
[Round "7.9"]
[White "Gadge Vedant"]
[Black "Avyay Sharma"]
[Result "1-0"]
[Annotator "NA RC"]
[ECO "A08"]
[WhiteElo "1667"]
[BlackElo "1586"]
[PlyCount "81"]
[EventDate "2025.03.25"]
[EventCountry "IND"]
[SourceTitle "playchess.com"]
[Source "ChessBase"]
[SourceQuality "1"]
[TimeControl "5400+30"]

1. Nf3 {[%emt 0:00:41]} d5 {[%emt 0:00:10]} 2. d3 {[%emt 0:00:08]} c5 {[%emt 0:00:11]} 3. Nbd2 {[%emt 0:00:09]} Nc6 {[%emt 0:00:13]} 4. g3 {[%emt 0:00:09]} e5 {[%emt 0:00:04]} 5. Bg2 {[%emt 0:00:15]} Nf6 {[%emt 0:00:18]} 6. e4 {[%emt 0:00:19]} dxe4 {[%emt 0:00:18]} 7. dxe4 {[%emt 0:00:08]} Bg4 {[%emt 0:00:21]} 8. c3 {[%emt 0:00:07]} Qc7 {[%emt 0:00:09]} 9. O-O {[%emt 0:00:36]} h5 {[%emt 0:00:17]} 10. h3 {[%emt 0:01:56]} Be6 {[%emt 0:00:22]} 11. Ng5 {[%emt 0:00:58]} Rd8 {[%emt 0:01:16]} 12. Nxe6 {[%emt 0:00:49]} fxe6 {[%emt 0:00:04]} 13. Qe2 {[%emt 0:00:45]} a6 {[%emt 0:00:08]} 14. Nf3 {[%emt 0:00:21]} Be7 {[%emt 0:03:48]} 15. Nh4 {[%emt 0:00:41]} Rg8 {[%emt 0:00:30]} 16. Bg5 {[%emt 0:00:28]} g6 {[%emt 0:00:27]} 17. Qc4 {[%emt 0:07:08]} Kf7 {[%emt 0:01:21]} 18. f4 {[%emt 0:02:15]} b5 {[%emt 0:01:26]} 19. Qe2 {[%emt 0:00:09]} Nh7 {[%emt 0:01:29]} 20. Bxe7 {[%emt 0:04:36]} Kxe7 {[%emt 0:00:49]} 21. f5 {[%emt 0:01:31]} gxf5 {[%emt 0:03:02]} 22. exf5 {[%emt 0:00:00]} Rg5 {[%emt 0:01:19]} 23. fxe6 {[%emt 0:00:00]} Kxe6 {[%emt 0:07:50]} 24. Qf3 Rd2 {[%emt 0:02:42]} 25. Rad1 {[%emt 0:05:44]} Rxd1 {[%emt 0:03:26]} 26. Rxd1 Nd8 {[%emt 0:09:31]} 27. Qd3 Nf6 {[%emt 0:00:35]} 28. Qxd8 {[%emt 0:02:32]} Qxd8 {[%emt 0:00:30]} 29. Rxd8 {[%emt 0:00:30]} Rxg3 {[%emt 0:00:04]} 30. Kf2 Rg7 {[%emt 0:00:46]} 31. Ra8 e4 {[%emt 0:01:12]} 32. Rxa6+ {[%emt 0:01:20]} Ke5 {[%emt 0:00:36]} 33. Rc6 {[%emt 0:01:08]} Nd5 {[%emt 0:00:00]} 34. Rxc5 Rg5 {[%emt 0:01:04]} 35. Nf3+ {[%emt 0:02:10]} exf3 {[%emt 0:00:00]} 36. Bxf3 Rg8 {[%emt 0:00:18]} 37. Rxd5+ {[%emt 0:00:12]} Kf4 {[%emt 0:00:46]} 38. Rd4+ {[%emt 0:00:45]} Ke5 {[%emt 0:01:01]} 39. Rb4 {[%emt 0:00:21]} h4 {[%emt 0:00:00]} 40. Rxb5+ {[%emt 0:00:07]} Kf4 {[%emt 0:00:00]} 41. Rb4+ {[%emt 0:00:04]} 1-0

[Event "12th National Amateur Chess-ch 2025"]
[Site "Bihar"]
[Date "2025.03.28"]
[Round "7.10"]
[White "Vamsi Krishna, R."]
[Black "Devansh Keshri"]
[Result "0-1"]
[Annotator "NA RC"]
[ECO "D05"]
[WhiteElo "1620"]
[BlackElo "1633"]
[PlyCount "80"]
[EventDate "2025.03.25"]
[EventCountry "IND"]
[SourceTitle "playchess.com"]
[Source "ChessBase"]
[SourceQuality "1"]
[TimeControl "5400+30"]

1. Nf3 {[%emt 0:02:03]} d5 {[%emt 0:00:04]} 2. d4 {[%emt 0:00:27]} Nf6 {[%emt 0:00:07]} 3. e3 {[%emt 0:03:10]} e6 {[%emt 0:00:39]} 4. Bd3 {[%emt 0:00:36]} Be7 {[%emt 0:02:07]} 5. Nbd2 {[%emt 0:00:52]} O-O {[%emt 0:00:36]} 6. O-O {[%emt 0:00:11]} b6 {[%emt 0:14:52]} 7. Ne5 {[%emt 0:14:46]} Bb7 {[%emt 0:00:00]} 8. f4 {[%emt 0:00:44]} Nbd7 {[%emt 0:00:00]} 9. Qf3 {[%emt 0:00:56]} c5 {[%emt 0:00:00]} 10. c3 {[%emt 0:00:12]} c4 {[%emt 0:00:00]} 11. Bc2 {[%emt 0:00:17]} b5 {[%emt 0:02:34]} 12. g4 {[%emt 0:02:27]} Nxe5 {[%emt 0:12:09]} 13. dxe5 {[%emt 0:04:58]} Nd7 {[%emt 0:02:17]} 14. Qh3 {[%emt 0:00:11]} g6 {[%emt 0:03:14]} 15. Nf3 {[%emt 0:02:19]} Qc7 {[%emt 0:05:08]} 16. Nd4 {[%emt 0:00:12]} a6 {[%emt 0:07:43]} 17. Bd2 {[%emt 0:01:04]} Rfe8 {[%emt 0:02:33]} 18. Be1 {[%emt 0:00:16]} Nc5 {[%emt 0:04:02]} 19. Bh4 {[%emt 0:00:45]} Bxh4 {[%emt 0:00:12]} 20. Qxh4 {[%emt 0:00:15]} Qe7 {[%emt 0:00:27]} 21. Qg3 {[%emt 0:08:23]} Rac8 {[%emt 0:02:07]} 22. g5 {[%emt 0:03:07]} Nd7 {[%emt 0:03:40]} 23. Rad1 {[%emt 0:01:13]} Nf8 {[%emt 0:01:01]} 24. a3 {[%emt 0:02:00]} Qc7 {[%emt 0:00:35]} 25. h3 {[%emt 0:01:03]} Qb6 {[%emt 0:00:39]} 26. Qe1 {[%emt 0:01:39]} Bc6 {[%emt 0:01:01]} 27. Nf3 {[%emt 0:02:44]} Rcd8 {[%emt 0:00:19]} 28. Rd4 {[%emt 0:00:17]} Nd7 {[%emt 0:00:52]} 29. Nh2 {[%emt 0:00:15]} Qc5 {[%emt 0:03:46]} 30. Ng4 {[%emt 0:00:50]} Qe7 {[%emt 0:00:37]} 31. Qg3 {[%emt 0:00:35]} Rb8 {[%emt 0:01:04]} 32. Rfd1 {[%emt 0:01:30]} Red8 {[%emt 0:01:56]} 33. Qh4 {[%emt 0:04:38]} a5 {[%emt 0:00:52]} 34. Kh2 {[%emt 0:00:59]} b4 {[%emt 0:01:06]} 35. axb4 {[%emt 0:02:02]} axb4 {[%emt 0:00:22]} 36. Rxc4 {[%emt 0:03:58]} dxc4 {[%emt 0:05:35]} 37. Rxd7 {[%emt 0:00:29]} Rxd7 {[%emt 0:00:21]} 38. Nf6+ {[%emt 0:00:27]} Qxf6 {[%emt 0:00:06]} 39. gxf6 {[%emt 0:00:42]} Rd2+ {[%emt 0:00:21]} 40. Kg1 {[%emt 0:01:12]} Ra8 {[%emt 0:00:06]} 0-1

[Event "12th National Amateur Chess-ch 2025"]
[Site "Bihar"]
[Date "2025.03.28"]
[Round "7.11"]
[White "Prashant Kumar Singh"]
[Black "Prem Kumar"]
[Result "1-0"]
[Annotator "NA RC"]
[ECO "E90"]
[WhiteElo "1651"]
[BlackElo "1697"]
[PlyCount "79"]
[EventDate "2025.03.25"]
[EventCountry "IND"]
[SourceTitle "playchess.com"]
[Source "ChessBase"]
[SourceQuality "1"]
[TimeControl "5400+30"]

1. d4 {[%emt 0:01:53]} g6 {[%emt 0:01:00]} 2. c4 {[%emt 0:00:29]} Nf6 {[%emt 0:00:16]} 3. Nc3 {[%emt 0:00:14]} Bg7 {[%emt 0:00:08]} 4. e4 {[%emt 0:01:10]} d6 {[%emt 0:00:11]} 5. h3 {[%emt 0:00:22]} O-O {[%emt 0:00:50]} 6. Be3 {[%emt 0:00:46]} Nbd7 {[%emt 0:00:43]} 7. Nf3 {[%emt 0:00:32]} e5 {[%emt 0:00:53]} 8. d5 {[%emt 0:00:41]} a5 {[%emt 0:04:08]} 9. Bd3 {[%emt 0:04:02]} b6 {[%emt 0:05:59]} 10. Bc2 {[%emt 0:04:37]} Ba6 {[%emt 0:01:33]} 11. b3 {[%emt 0:01:11]} Qe7 {[%emt 0:04:38]} 12. Qd2 {[%emt 0:02:06]} Ne8 {[%emt 0:00:49]} 13. g4 {[%emt 0:02:18]} f6 {[%emt 0:03:31]} 14. O-O-O {[%emt 0:03:54]} Nc5 {[%emt 0:01:18]} 15. a4 {[%emt 0:01:03]} Bc8 {[%emt 0:02:01]} 16. Rdg1 {[%emt 0:01:19]} Rf7 {[%emt 0:09:02]} 17. h4 {[%emt 0:04:24]} Bh8 {[%emt 0:08:18]} 18. Ne2 {[%emt 0:06:50]} Ng7 {[%emt 0:04:29]} 19. h5 {[%emt 0:05:45]} Rf8 {[%emt 0:07:03]} 20. hxg6 {[%emt 0:01:57]} hxg6 {[%emt 0:00:18]} 21. Bxc5 {[%emt 0:06:22]} bxc5 {[%emt 0:00:30]} 22. Qh6 {[%emt 0:00:15]} g5 {[%emt 0:09:19]} 23. Qxh8+ {[%emt 0:01:44]} Kf7 {[%emt 0:00:01]} 24. Qh7 {[%emt 0:00:54]} Bd7 {[%emt 0:00:30]} 25. Rh6 {[%emt 0:03:51]} Rg8 {[%emt 0:05:24]} 26. Qg6+ {[%emt 0:02:40]} Kf8 {[%emt 0:00:04]} 27. Qxf6+ {[%emt 0:01:15]} Qxf6 {[%emt 0:00:38]} 28. Rxf6+ {[%emt 0:00:02]} Ke7 {[%emt 0:00:35]} 29. Rg6 {[%emt 0:00:34]} Raf8 {[%emt 0:00:23]} 30. Nxg5 {[%emt 0:02:26]} Rxf2 {[%emt 0:00:44]} 31. Ng3 {[%emt 0:02:04]} Kf8 {[%emt 0:12:30]} 32. Nf5 {[%emt 0:01:47]} Nxf5 {[%emt 0:01:42]} 33. Rxg8+ {[%emt 0:00:13]} Kxg8 {[%emt 0:00:35]} 34. exf5 {[%emt 0:00:49]} Rh2 {[%emt 0:02:04]} 35. Ne6 {[%emt 0:00:13]} c6 {[%emt 0:00:40]} 36. g5 {[%emt 0:00:29]} cxd5 {[%emt 0:00:21]} 37. cxd5 {[%emt 0:00:03]} Rf2 {[%emt 0:02:09]} 38. g6 {[%emt 0:00:53]} Bc8 {[%emt 0:00:40]} 39. g7 {[%emt 0:01:22]} c4 {[%emt 0:04:00]} 40. f6 {[%emt 0:00:16]} 1-0

[Event "12th National Amateur Chess-ch 2025"]
[Site "Bihar"]
[Date "2025.03.28"]
[Round "7.12"]
[White "Tejas Shandilya"]
[Black "Raj Aryan"]
[Result "0-1"]
[Annotator "NA RC"]
[ECO "A12"]
[WhiteElo "1675"]
[BlackElo "1630"]
[PlyCount "106"]
[EventDate "2025.03.25"]
[EventCountry "IND"]
[SourceTitle "playchess.com"]
[Source "ChessBase"]
[SourceQuality "1"]
[TimeControl "5400+30"]

1. d4 {[%emt 0:01:39]} Nf6 {[%emt 0:00:07]} 2. Nf3 {[%emt 0:00:51]} d5 {[%emt 0:00:04]} 3. g3 {[%emt 0:00:54]} Bf5 {[%emt 0:00:09]} 4. Bg2 {[%emt 0:00:09]} e6 {[%emt 0:00:11]} 5. O-O {[%emt 0:01:00]} Be7 {[%emt 0:00:18]} 6. b3 {[%emt 0:02:12]} h6 {[%emt 0:00:05]} 7. Bb2 {[%emt 0:00:24]} Nbd7 {[%emt 0:00:26]} 8. Nbd2 {[%emt 0:01:22]} O-O {[%emt 0:00:13]} 9. c4 {[%emt 0:01:04]} c6 {[%emt 0:00:04]} 10. Re1 {[%emt 0:03:06]} a5 {[%emt 0:00:24]} 11. a3 {[%emt 0:02:50]} Ne4 {[%emt 0:03:17]} 12. Nxe4 {[%emt 0:03:41]} Bxe4 {[%emt 0:01:26]} 13. Nd2 {[%emt 0:00:20]} Bxg2 {[%emt 0:00:48]} 14. Kxg2 {[%emt 0:00:12]} f5 {[%emt 0:03:07]} 15. f4 {[%emt 0:00:15]} Nf6 {[%emt 0:00:16]} 16. Nf3 {[%emt 0:00:37]} Bd6 {[%emt 0:00:43]} 17. e3 {[%emt 0:00:07]} Ne4 {[%emt 0:00:04]} 18. cxd5 {[%emt 0:00:30]} cxd5 {[%emt 0:01:13]} 19. Rc1 {[%emt 0:00:34]} Rc8 {[%emt 0:00:07]} 20. Ne5 {[%emt 0:00:08]} Bxe5 {[%emt 0:03:58]} 21. Rxc8 {[%emt 0:01:08]} Qxc8 {[%emt 0:00:33]} 22. dxe5 {[%emt 0:00:02]} Qc6 {[%emt 0:01:32]} 23. Qd3 {[%emt 0:05:38]} Nc5 {[%emt 0:04:42]} 24. Qc2 {[%emt 0:05:53]} Qb5 {[%emt 0:00:33]} 25. Rb1 {[%emt 0:02:29]} Nxb3 {[%emt 0:03:45]} 26. Bc3 {[%emt 0:08:32]} a4 {[%emt 0:00:05]} 27. Bb4 {[%emt 0:00:03]} Re8 {[%emt 0:00:54]} 28. Rd1 {[%emt 0:02:22]} Qc6 {[%emt 0:01:11]} 29. Qxc6 {[%emt 0:01:09]} bxc6 {[%emt 0:00:05]} 30. Bd6 {[%emt 0:00:43]} Rc8 {[%emt 0:01:02]} 31. Rd3 {[%emt 0:00:19]} c5 {[%emt 0:00:13]} 32. Rc3 {[%emt 0:00:03]} c4 {[%emt 0:00:10]} 33. Kf2 {[%emt 0:00:28]} Nd2 {[%emt 0:01:26]} 34. Ke2 {[%emt 0:00:16]} Ne4 {[%emt 0:00:09]} 35. Bb4 {[%emt 0:00:04]} Nxc3+ {[%emt 0:00:19]} 36. Bxc3 {[%emt 0:00:01]} Rb8 {[%emt 0:00:11]} 37. Kd2 {[%emt 0:00:42]} Rb3 {[%emt 0:00:26]} 38. Bb4 {[%emt 0:00:24]} Kf7 {[%emt 0:00:20]} 39. h3 {[%emt 0:00:50]} h5 {[%emt 0:00:09]} 40. Bc5 {[%emt 0:00:07]} Ke8 {[%emt 0:00:53]} 41. Kc2 {[%emt 0:00:10]} Kd7 {[%emt 0:00:12]} 42. Kd2 {[%emt 0:00:55]} Kc6 {[%emt 0:00:09]} 43. Be7 {[%emt 0:00:04]} Kb5 {[%emt 0:00:13]} 44. Bd6 {[%emt 0:00:24]} Rb2+ {[%emt 0:00:24]} 45. Kc3 {[%emt 0:00:14]} Rg2 {[%emt 0:00:08]} 46. Kd4 {[%emt 0:00:34]} Rxg3 {[%emt 0:00:30]} 47. h4 {[%emt 0:00:02]} Rg1 {[%emt 0:00:41]} 48. Bf8 {[%emt 0:00:32]} g6 {[%emt 0:00:22]} 49. Bb4 {[%emt 0:00:09]} Rd1+ {[%emt 0:00:31]} 50. Kc3 {[%emt 0:00:02]} Rd3+ {[%emt 0:00:06]} 51. Kc2 {[%emt 0:00:09]} Rxe3 {[%emt 0:00:06]} 52. Kd2 {[%emt 0:00:34]} Rf3 {[%emt 0:00:12]} 53. Ke2 {[%emt 0:00:02]} Rxf4 {[%emt 0:00:08]} 0-1

[Event "12th National Amateur Chess-ch 2025"]
[Site "Bihar"]
[Date "2025.03.28"]
[Round "7.13"]
[White "Theephigaa K P"]
[Black "Bristy Mukherjee"]
[Result "1/2-1/2"]
[Annotator "NA RC"]
[ECO "B00"]
[WhiteElo "1792"]
[BlackElo "1985"]
[PlyCount "61"]
[EventDate "2025.03.25"]
[EventCountry "IND"]
[SourceTitle "playchess.com"]
[Source "ChessBase"]
[SourceQuality "1"]
[TimeControl "5400+30"]

1. e4 {[%emt 0:09:48]} b6 {[%emt 0:01:49]} 2. d4 {[%emt 0:00:10]} Bb7 {[%emt 0:00:06]} 3. Bd3 {[%emt 0:00:27]} Nf6 {[%emt 0:03:29]} 4. Qe2 {[%emt 0:00:51]} e6 {[%emt 0:03:32]} 5. Nf3 {[%emt 0:00:37]} d5 {[%emt 0:01:38]} 6. e5 {[%emt 0:08:01]} Nfd7 {[%emt 0:00:33]} 7. c3 {[%emt 0:07:57]} Be7 {[%emt 0:02:51]} 8. h4 {[%emt 0:04:16]} h6 {[%emt 0:07:27]} 9. Bf4 {[%emt 0:11:33]} Qc8 {[%emt 0:02:50]} 10. Nbd2 {[%emt 0:04:05]} c5 {[%emt 0:07:10]} 11. Nf1 {[%emt 0:04:33]} Ba6 {[%emt 0:02:47]} 12. Ng3 {[%emt 0:06:01]} Bxd3 {[%emt 0:01:57]} 13. Qxd3 {[%emt 0:01:03]} Qa6 {[%emt 0:00:31]} 14. Qxa6 {[%emt 0:02:34]} Nxa6 {[%emt 0:00:06]} 15. Kd2 {[%emt 0:10:35]} Rc8 {[%emt 0:01:56]} 16. Rac1 {[%emt 0:06:18]} b5 {[%emt 0:00:50]} 17. Rhd1 {[%emt 0:06:54]} Nb6 {[%emt 0:01:13]} 18. b3 {[%emt 0:01:42]} O-O {[%emt 0:05:36]} 19. Nh5 {[%emt 0:03:59]} b4 {[%emt 0:06:52]} 20. cxb4 {[%emt 0:02:34]} cxb4 {[%emt 0:14:12]} 21. Rxc8 {[%emt 0:02:33]} Rxc8 {[%emt 0:00:05]} 22. Rc1 {[%emt 0:01:23]} Rxc1 {[%emt 0:00:28]} 23. Kxc1 {[%emt 0:00:11]} Nc7 {[%emt 0:00:50]} 24. Ng3 {[%emt 0:00:41]} Nb5 {[%emt 0:00:24]} 25. Ne2 {[%emt 0:00:43]} Nd7 {[%emt 0:00:45]} 26. g3 {[%emt 0:01:22]} Nb8 {[%emt 0:00:27]} 27. Ne1 {[%emt 0:01:18]} Nc6 {[%emt 0:00:56]} 28. Be3 {[%emt 0:00:45]} h5 {[%emt 0:02:15]} 29. Nd3 {[%emt 0:01:01]} g6 {[%emt 0:01:01]} 30. Kc2 {[%emt 0:00:30]} a5 {[%emt 0:00:25]} 31. Kb2 {[%emt 0:00:26]} 1/2-1/2